[Event "Titled Tuesday Blitz June 6 Late 2023"]
[White "Licznerski, Lukasz"]
[Black "Mieles Palau, Daniel"]
[WhiteFideId "1179250"]
[BlackFideId "3600467"]
[WhiteElo "2453"]
[BlackElo "2344"]
[Result "1-0"]
[Round "3"]
[TimeControl "180+2"]
[Date "2023.06.07"]
[WhiteClock "0:01:01"]
[BlackClock "0:00:29"]
[Board "62"]

1. e4 {[%clk 0:03:00]}  c5 {[%clk 0:03:00]} 2. Nf3 {[%clk 0:03:00]}  Nc6 {[%clk 0:03:00]} 3. Bb5 {[%clk 0:03:00]}  g6 {[%clk 0:03:00]} 4. O-O {[%clk 0:02:58]}  Bg7 {[%clk 0:02:59]} 5. Bxc6 {[%clk 0:02:59]}  dxc6 {[%clk 0:02:59]} 6. d3 {[%clk 0:02:59]}  Nf6 {[%clk 0:02:54]} 7. h3 {[%clk 0:02:56]}  Nd7 {[%clk 0:02:53]} 8. Nc3 {[%clk 0:02:56]}  e5 {[%clk 0:02:52]} 9. Be3 {[%clk 0:02:56]}  b6 {[%clk 0:02:51]} 10. Ne2 {[%clk 0:02:47]}  Nf8 {[%clk 0:02:38]} 11. Nh2 {[%clk 0:02:47]}  Ne6 {[%clk 0:02:37]} 12. Qd2 {[%clk 0:02:42]}  h6 {[%clk 0:02:31]} 13. Rae1 {[%clk 0:02:39]}  g5 {[%clk 0:02:28]} 14. Ng3 {[%clk 0:02:28]}  Nf4 {[%clk 0:02:23]} 15. Nf5 {[%clk 0:02:22]}  Bxf5 {[%clk 0:02:20]} 16. exf5 {[%clk 0:02:23]}  O-O {[%clk 0:02:11]} 17. g3 {[%clk 0:02:02]}  Nxh3+ {[%clk 0:02:10]} 18. Kg2 {[%clk 0:02:02]}  Nf4+ {[%clk 0:02:10]} 19. gxf4 {[%clk 0:01:53]}  Qd5+ {[%clk 0:02:08]} 20. f3 {[%clk 0:01:34]}  exf4 {[%clk 0:02:08]} 21. Bxf4 {[%clk 0:01:34]}  gxf4 {[%clk 0:02:03]} 22. Qxf4 {[%clk 0:01:35]}  Qd4 {[%clk 0:01:43]} 23. Re4 {[%clk 0:01:25]}  Qxb2 {[%clk 0:01:40]} 24. Ng4 {[%clk 0:01:25]}  h5 {[%clk 0:01:38]} 25. f6 {[%clk 0:01:10]}  hxg4 {[%clk 0:01:35]} 26. fxg7 {[%clk 0:01:09]}  Rfe8 {[%clk 0:01:12]} 27. Qh6 {[%clk 0:01:06]}  f5 {[%clk 0:00:30]} 28. Rxe8+ {[%clk 0:01:02]}  Rxe8 {[%clk 0:00:29]} 29. Qh8+ {[%clk 0:01:02]}  Kf7 {[%clk 0:00:29]} 30. g8=Q+ {[%clk 0:01:01]} 1-0


[Site "https://www.chess.com"]

[Event "Titled Tuesday Blitz June 6 Late 2023"]
[White "Liu, Casper"]
[Black "Moroni, Luca Jr"]
[WhiteFideId "1454153"]
[BlackFideId "865834"]
[WhiteElo "2221"]
[BlackElo "2569"]
[Result "0-1"]
[Round "3"]
[TimeControl "180+2"]
[Date "2023.06.07"]
[WhiteClock "0:00:56"]
[BlackClock "0:00:41"]
[Board "63"]

1. e4 {[%clk 0:02:54]}  g6 {[%clk 0:02:59]} 2. d4 {[%clk 0:02:49]}  Bg7 {[%clk 0:03:00]} 3. Nc3 {[%clk 0:02:49]}  a6 {[%clk 0:03:00]} 4. f3 {[%clk 0:02:50]}  b5 {[%clk 0:02:58]} 5. a3 {[%clk 0:02:50]}  Bb7 {[%clk 0:02:58]} 6. Nge2 {[%clk 0:02:50]}  d6 {[%clk 0:02:59]} 7. Be3 {[%clk 0:02:50]}  Nd7 {[%clk 0:02:59]} 8. g3 {[%clk 0:02:49]}  c5 {[%clk 0:02:59]} 9. Bg2 {[%clk 0:02:49]}  Ngf6 {[%clk 0:02:59]} 10. dxc5 {[%clk 0:02:48]}  Nxc5 {[%clk 0:02:59]} 11. O-O {[%clk 0:02:49]}  O-O {[%clk 0:02:59]} 12. Kh1 {[%clk 0:02:48]}  Rc8 {[%clk 0:02:59]} 13. Bg1 {[%clk 0:02:49]}  Nfd7 {[%clk 0:02:54]} 14. Qd2 {[%clk 0:02:49]}  Ne5 {[%clk 0:02:54]} 15. Rad1 {[%clk 0:02:43]}  Nc4 {[%clk 0:02:53]} 16. Qc1 {[%clk 0:02:43]}  f5 {[%clk 0:02:53]} 17. exf5 {[%clk 0:02:35]}  Rxf5 {[%clk 0:02:52]} 18. b3 {[%clk 0:02:36]}  Ne5 {[%clk 0:02:50]} 19. Nd4 {[%clk 0:02:36]}  Rf7 {[%clk 0:02:50]} 20. b4 {[%clk 0:02:35]}  Ncd7 {[%clk 0:02:45]} 21. Ne6 {[%clk 0:02:35]}  Qe8 {[%clk 0:02:46]} 22. Nxg7 {[%clk 0:02:35]}  Kxg7 {[%clk 0:02:43]} 23. Nd5 {[%clk 0:02:35]}  Bxd5 {[%clk 0:02:35]} 24. Rxd5 {[%clk 0:02:34]}  Nf6 {[%clk 0:02:35]} 25. Rdd1 {[%clk 0:02:32]}  Nc4 {[%clk 0:02:35]} 26. Rfe1 {[%clk 0:02:26]}  Qd7 {[%clk 0:02:29]} 27. f4 {[%clk 0:02:25]}  h5 {[%clk 0:02:22]} 28. Rd3 {[%clk 0:02:25]}  Rh8 {[%clk 0:02:20]} 29. h3 {[%clk 0:02:20]}  Rc8 {[%clk 0:02:07]} 30. Qa1 {[%clk 0:02:15]}  Kh7 {[%clk 0:02:04]} 31. Kh2 {[%clk 0:02:08]}  Rc7 {[%clk 0:01:56]} 32. Bd4 {[%clk 0:01:55]}  Qf5 {[%clk 0:01:56]} 33. Qd1 {[%clk 0:01:44]}  e5 {[%clk 0:01:53]} 34. fxe5 {[%clk 0:01:40]}  dxe5 {[%clk 0:01:53]} 35. Ba1 {[%clk 0:01:37]}  e4 {[%clk 0:01:34]} 36. Rd8 {[%clk 0:01:33]}  h4 {[%clk 0:01:22]} 37. Rxe4 {[%clk 0:01:26]}  hxg3+ {[%clk 0:01:19]} 38. Kh1 {[%clk 0:01:26]}  Rcd7 {[%clk 0:01:12]} 39. Rh4+ {[%clk 0:01:25]}  Kg7 {[%clk 0:01:11]} 40. Rxd7 {[%clk 0:01:25]}  Rxd7 {[%clk 0:01:10]} 41. Qg1 {[%clk 0:01:24]}  Ne3 {[%clk 0:01:02]} 42. Bd4 {[%clk 0:01:18]}  Nxg2 {[%clk 0:00:45]} 43. Qxg2 {[%clk 0:01:15]}  g5 {[%clk 0:00:41]} 44. Rg4 {[%clk 0:01:10]}  Kg6 {[%clk 0:00:41]} 45. Qc6 {[%clk 0:00:56]}  Qf1+ {[%clk 0:00:40]} 46. Bg1 {[%clk 0:00:56]}  Qxh3+ {[%clk 0:00:41]} 0-1


[Site "https://www.chess.com"]

[Event "Titled Tuesday Blitz June 6 Late 2023"]
[White "Fernandez Guillen, Ernesto J."]
[Black "Filgueira, Hernan"]
[WhiteFideId "3512428"]
[BlackFideId "101770"]
[WhiteElo "2434"]
[BlackElo "2363"]
[Result "1-0"]
[Round "3"]
[TimeControl "180+2"]
[Date "2023.06.07"]
[WhiteClock "0:01:50"]
[BlackClock "0:01:13"]
[Board "66"]

1. e4 {[%clk 0:03:00]}  d6 {[%clk 0:02:59]} 2. d4 {[%clk 0:02:55]}  Nf6 {[%clk 0:02:59]} 3. Nc3 {[%clk 0:02:50]}  e5 {[%clk 0:02:59]} 4. dxe5 {[%clk 0:02:50]}  dxe5 {[%clk 0:02:58]} 5. Qxd8+ {[%clk 0:02:51]}  Kxd8 {[%clk 0:02:59]} 6. Bg5 {[%clk 0:02:52]}  c6 {[%clk 0:02:51]} 7. O-O-O+ {[%clk 0:02:53]}  Ke8 {[%clk 0:02:51]} 8. f4 {[%clk 0:02:54]}  h6 {[%clk 0:02:41]} 9. Bxf6 {[%clk 0:02:53]}  gxf6 {[%clk 0:02:41]} 10. f5 {[%clk 0:02:52]}  Bb4 {[%clk 0:02:36]} 11. Nce2 {[%clk 0:02:38]}  Nd7 {[%clk 0:02:31]} 12. Nf3 {[%clk 0:02:38]}  Ke7 {[%clk 0:02:28]} 13. Ng3 {[%clk 0:02:38]}  Bc5 {[%clk 0:02:26]} 14. Bd3 {[%clk 0:02:37]}  a5 {[%clk 0:02:15]} 15. Kb1 {[%clk 0:02:36]}  a4 {[%clk 0:02:15]} 16. c3 {[%clk 0:02:34]}  Bb6 {[%clk 0:02:09]} 17. Nh5 {[%clk 0:02:34]}  Nc5 {[%clk 0:02:08]} 18. Bc2 {[%clk 0:02:31]}  Bc7 {[%clk 0:02:04]} 19. g4 {[%clk 0:02:29]}  b5 {[%clk 0:02:00]} 20. a3 {[%clk 0:02:26]}  Bb7 {[%clk 0:01:51]} 21. h3 {[%clk 0:02:23]}  Rad8 {[%clk 0:01:48]} 22. Ng3 {[%clk 0:02:22]}  Rxd1+ {[%clk 0:01:45]} 23. Rxd1 {[%clk 0:02:23]}  Bb6 {[%clk 0:01:44]} 24. Nh5 {[%clk 0:02:19]}  Rg8 {[%clk 0:01:31]} 25. Rd2 {[%clk 0:02:04]}  Bc7 {[%clk 0:01:27]} 26. Kc1 {[%clk 0:01:56]}  Nd7 {[%clk 0:01:26]} 27. Kd1 {[%clk 0:01:56]}  Nb6 {[%clk 0:01:26]} 28. Bd3 {[%clk 0:01:52]}  c5 {[%clk 0:01:14]} 29. Ke2 {[%clk 0:01:50]}  c4 {[%clk 0:01:14]} 30. Bc2 {[%clk 0:01:49]}  Nd7 {[%clk 0:01:15]} 31. Rxd7+ {[%clk 0:01:49]}  Kxd7 {[%clk 0:01:14]} 32. Nxf6+ {[%clk 0:01:50]}  Kd6 {[%clk 0:01:13]} 33. Nxg8 {[%clk 0:01:50]} 1-0


[Site "https://www.chess.com"]

[Event "Titled Tuesday Blitz June 6 Late 2023"]
[White "Somalianwarrior2006"]
[Black "Pinheiro, Iung Alicio de O."]
[BlackFideId "2104350"]
[WhiteElo "2747"]
[BlackElo "2283"]
[Result "1-0"]
[Round "3"]
[TimeControl "180+2"]
[Date "2023.06.07"]
[WhiteClock "0:00:02"]
[BlackClock "0:00:02"]
[Board "67"]

1. e4 {[%clk 0:02:59]}  e5 {[%clk 0:02:58]} 2. Nf3 {[%clk 0:02:57]}  Nc6 {[%clk 0:02:58]} 3. Bc4 {[%clk 0:02:58]}  Nf6 {[%clk 0:02:55]} 4. d3 {[%clk 0:02:58]}  Be7 {[%clk 0:02:55]} 5. a4 {[%clk 0:02:54]}  O-O {[%clk 0:02:54]} 6. O-O {[%clk 0:02:55]}  d6 {[%clk 0:02:54]} 7. h3 {[%clk 0:02:55]}  Kh8 {[%clk 0:02:51]} 8. c3 {[%clk 0:02:51]}  Ng8 {[%clk 0:02:45]} 9. b4 {[%clk 0:02:37]}  f5 {[%clk 0:02:40]} 10. a5 {[%clk 0:02:34]}  fxe4 {[%clk 0:02:26]} 11. dxe4 {[%clk 0:02:33]}  a6 {[%clk 0:02:25]} 12. Re1 {[%clk 0:02:20]}  Bf6 {[%clk 0:02:18]} 13. Nbd2 {[%clk 0:02:14]}  Nce7 {[%clk 0:02:15]} 14. Nf1 {[%clk 0:02:09]}  Ng6 {[%clk 0:02:14]} 15. Be3 {[%clk 0:02:02]}  Qe7 {[%clk 0:02:12]} 16. Qb3 {[%clk 0:01:58]}  Nh6 {[%clk 0:02:07]} 17. Rad1 {[%clk 0:01:53]}  Nf7 {[%clk 0:02:04]} 18. Bd5 {[%clk 0:01:42]}  Ng5 {[%clk 0:01:50]} 19. N1h2 {[%clk 0:01:26]}  Nxf3+ {[%clk 0:01:25]} 20. Nxf3 {[%clk 0:01:26]}  Nh4 {[%clk 0:01:23]} 21. Nh2 {[%clk 0:01:11]}  Qe8 {[%clk 0:01:16]} 22. Kh1 {[%clk 0:00:58]}  Qh5 {[%clk 0:00:59]} 23. Rg1 {[%clk 0:00:35]}  Bg5 {[%clk 0:00:43]} 24. Be6 {[%clk 0:00:24]}  Bxe3 {[%clk 0:00:39]} 25. fxe3 {[%clk 0:00:24]}  Rf6 {[%clk 0:00:24]} 26. Bxc8 {[%clk 0:00:21]}  Rxc8 {[%clk 0:00:24]} 27. Rdf1 {[%clk 0:00:21]}  Rcf8 {[%clk 0:00:21]} 28. Rxf6 {[%clk 0:00:19]}  Rxf6 {[%clk 0:00:22]} 29. Qd5 {[%clk 0:00:20]}  c6 {[%clk 0:00:22]} 30. Qd3 {[%clk 0:00:18]}  h6 {[%clk 0:00:21]} 31. Qd1 {[%clk 0:00:15]}  Qg5 {[%clk 0:00:19]} 32. Qg4 {[%clk 0:00:15]}  Qxg4 {[%clk 0:00:13]} 33. Nxg4 {[%clk 0:00:16]}  Rf7 {[%clk 0:00:14]} 34. Rd1 {[%clk 0:00:16]}  h5 {[%clk 0:00:13]} 35. Nh2 {[%clk 0:00:15]}  Rf6 {[%clk 0:00:13]} 36. g3 {[%clk 0:00:14]}  Ng6 {[%clk 0:00:13]} 37. Kg2 {[%clk 0:00:14]}  Ne7 {[%clk 0:00:12]} 38. Nf3 {[%clk 0:00:15]}  Kh7 {[%clk 0:00:11]} 39. h4 {[%clk 0:00:14]}  Kg6 {[%clk 0:00:11]} 40. c4 {[%clk 0:00:14]}  Re6 {[%clk 0:00:11]} 41. c5 {[%clk 0:00:13]}  d5 {[%clk 0:00:11]} 42. Nd2 {[%clk 0:00:09]}  Kf7 {[%clk 0:00:09]} 43. Kf3 {[%clk 0:00:09]}  g6 {[%clk 0:00:09]} 44. Ke2 {[%clk 0:00:09]}  Kf6 {[%clk 0:00:09]} 45. Kd3 {[%clk 0:00:08]}  Kf7 {[%clk 0:00:09]} 46. exd5 {[%clk 0:00:09]}  cxd5 {[%clk 0:00:08]} 47. Ke2 {[%clk 0:00:09]}  Nc6 {[%clk 0:00:08]} 48. Rb1 {[%clk 0:00:09]}  e4 {[%clk 0:00:07]} 49. b5 {[%clk 0:00:04]}  Nxa5 {[%clk 0:00:06]} 50. bxa6 {[%clk 0:00:05]}  bxa6 {[%clk 0:00:06]} 51. Ra1 {[%clk 0:00:05]}  Nb7 {[%clk 0:00:06]} 52. Nb3 {[%clk 0:00:05]}  Rc6 {[%clk 0:00:05]} 53. Rc1 {[%clk 0:00:05]}  a5 {[%clk 0:00:04]} 54. Rf1+ {[%clk 0:00:04]}  Ke7 {[%clk 0:00:04]} 55. Ra1 {[%clk 0:00:05]}  Nxc5 {[%clk 0:00:03]} 56. Nxa5 {[%clk 0:00:02]}  Ra6 {[%clk 0:00:02]} 57. Nb3 {[%clk 0:00:02]} 1-0


[Site "https://www.chess.com"]

[Event "Titled Tuesday Blitz June 6 Late 2023"]
[White "Mei, Austin"]
[Black "Kushko, Dmitriy"]
[WhiteFideId "30948479"]
[BlackFideId "14162261"]
[WhiteElo "2125"]
[BlackElo "2230"]
[Result "0-1"]
[Round "3"]
[TimeControl "180+2"]
[Date "2023.06.07"]
[WhiteClock "0:00:08"]
[BlackClock "0:00:04"]
[Board "68"]

1. e4 {[%clk 0:03:00]}  g6 {[%clk 0:03:00]} 2. d4 {[%clk 0:03:00]}  Bg7 {[%clk 0:03:01]} 3. Be3 {[%clk 0:03:01]}  d6 {[%clk 0:02:59]} 4. Qd2 {[%clk 0:03:00]}  e5 {[%clk 0:02:50]} 5. Nc3 {[%clk 0:02:55]}  Nc6 {[%clk 0:02:48]} 6. Bb5 {[%clk 0:02:53]}  Bd7 {[%clk 0:02:37]} 7. Nf3 {[%clk 0:02:47]}  a6 {[%clk 0:02:25]} 8. Bc4 {[%clk 0:02:42]}  Nf6 {[%clk 0:02:16]} 9. h3 {[%clk 0:02:40]}  b5 {[%clk 0:02:13]} 10. Bd5 {[%clk 0:02:23]}  b4 {[%clk 0:02:01]} 11. Ne2 {[%clk 0:02:23]}  Nxd5 {[%clk 0:01:53]} 12. exd5 {[%clk 0:02:23]}  Ne7 {[%clk 0:01:53]} 13. dxe5 {[%clk 0:02:22]}  dxe5 {[%clk 0:01:53]} 14. Rd1 {[%clk 0:02:17]}  a5 {[%clk 0:01:30]} 15. Bh6 {[%clk 0:02:15]}  Bxh6 {[%clk 0:01:23]} 16. Qxh6 {[%clk 0:02:16]}  Nf5 {[%clk 0:01:24]} 17. Qd2 {[%clk 0:02:14]}  Qe7 {[%clk 0:01:10]} 18. g4 {[%clk 0:02:13]}  Nd6 {[%clk 0:01:09]} 19. Qe3 {[%clk 0:02:11]}  e4 {[%clk 0:01:02]} 20. Nd2 {[%clk 0:02:01]}  O-O {[%clk 0:00:55]} 21. Ng3 {[%clk 0:01:59]}  Rae8 {[%clk 0:00:47]} 22. O-O {[%clk 0:01:39]}  f5 {[%clk 0:00:47]} 23. gxf5 {[%clk 0:01:39]}  Nxf5 {[%clk 0:00:44]} 24. Nxf5 {[%clk 0:01:39]}  Rxf5 {[%clk 0:00:38]} 25. f4 {[%clk 0:01:33]}  Rxd5 {[%clk 0:00:27]} 26. Nc4 {[%clk 0:01:30]}  Rxd1 {[%clk 0:00:24]} 27. Rxd1 {[%clk 0:01:31]}  a4 {[%clk 0:00:20]} 28. Ne5 {[%clk 0:01:31]}  Bf5 {[%clk 0:00:18]} 29. Kg2 {[%clk 0:01:24]}  Qe6 {[%clk 0:00:10]} 30. Rd7 {[%clk 0:01:11]}  Qb6 {[%clk 0:00:04]} 31. Qxb6 {[%clk 0:01:06]}  cxb6 {[%clk 0:00:05]} 32. Rd4 {[%clk 0:00:30]}  Rc8 {[%clk 0:00:05]} 33. Rxb4 {[%clk 0:00:27]}  Rxc2+ {[%clk 0:00:05]} 34. Kg3 {[%clk 0:00:27]}  e3 {[%clk 0:00:05]} 35. Rxb6 {[%clk 0:00:17]}  e2 {[%clk 0:00:05]} 36. Nf3 {[%clk 0:00:17]}  Be4 {[%clk 0:00:05]} 37. Re6 {[%clk 0:00:13]}  Bd5 {[%clk 0:00:04]} 38. Re5 {[%clk 0:00:10]}  Bxa2 {[%clk 0:00:03]} 39. Nd4 {[%clk 0:00:10]}  Rxb2 {[%clk 0:00:03]} 40. Nxe2 {[%clk 0:00:10]}  Bc4 {[%clk 0:00:03]} 41. Nc3 {[%clk 0:00:08]}  Rb3 {[%clk 0:00:04]} 42. Re3 {[%clk 0:00:08]}  a3 {[%clk 0:00:04]} 43. Kf2 {[%clk 0:00:08]}  a2 {[%clk 0:00:03]} 44. Nxa2 {[%clk 0:00:08]}  Rxe3 {[%clk 0:00:03]} 45. Kxe3 {[%clk 0:00:08]}  Bxa2 {[%clk 0:00:03]} 46. Ke4 {[%clk 0:00:08]}  Be6 {[%clk 0:00:04]} 47. h4 {[%clk 0:00:08]}  Kf7 {[%clk 0:00:04]} 0-1


[Site "https://www.chess.com"]

[Event "Titled Tuesday Blitz June 6 Late 2023"]
[White "Della Morte, German"]
[Black "Horvath, Dominik"]
[WhiteFideId "113522"]
[BlackFideId "1642561"]
[WhiteElo "2306"]
[BlackElo "2407"]
[Result "0-1"]
[Round "3"]
[TimeControl "180+2"]
[Date "2023.06.07"]
[WhiteClock "0:02:15"]
[BlackClock "0:01:41"]
[Board "70"]

1. e4 {[%clk 0:03:00]}  c6 {[%clk 0:02:48]} 2. d4 {[%clk 0:03:00]}  d5 {[%clk 0:02:48]} 3. exd5 {[%clk 0:03:01]}  cxd5 {[%clk 0:02:48]} 4. c3 {[%clk 0:03:02]}  Nf6 {[%clk 0:02:48]} 5. Nf3 {[%clk 0:03:03]}  Qc7 {[%clk 0:02:46]} 6. Bd3 {[%clk 0:03:02]}  g6 {[%clk 0:02:46]} 7. O-O {[%clk 0:03:02]}  Bf5 {[%clk 0:02:46]} 8. Bg5 {[%clk 0:03:01]}  Bxd3 {[%clk 0:02:41]} 9. Qxd3 {[%clk 0:02:59]}  Ne4 {[%clk 0:02:42]} 10. Bh4 {[%clk 0:02:58]}  Nc6 {[%clk 0:02:39]} 11. Bg3 {[%clk 0:02:56]}  Nxg3 {[%clk 0:02:39]} 12. hxg3 {[%clk 0:02:57]}  e6 {[%clk 0:02:39]} 13. Nbd2 {[%clk 0:02:57]}  h5 {[%clk 0:02:37]} 14. Rfe1 {[%clk 0:02:56]}  O-O-O {[%clk 0:02:36]} 15. Ng5 {[%clk 0:02:56]}  Bh6 {[%clk 0:02:34]} 16. Ndf3 {[%clk 0:02:55]}  Qe7 {[%clk 0:02:28]} 17. Nxe6 {[%clk 0:02:41]}  fxe6 {[%clk 0:02:27]} 18. Qxg6 {[%clk 0:02:42]}  Rde8 {[%clk 0:02:22]} 19. Re2 {[%clk 0:02:34]}  Nd8 {[%clk 0:02:01]} 20. Ne5 {[%clk 0:02:26]}  Reg8 {[%clk 0:01:48]} 21. Qd3 {[%clk 0:02:16]}  h4 {[%clk 0:01:44]} 22. Ng6 {[%clk 0:02:15]}  Qh7 {[%clk 0:01:43]} 23. Rxe6 {[%clk 0:02:15]}  Nxe6 {[%clk 0:01:41]} 0-1


[Site "https://www.chess.com"]

[Event "Titled Tuesday Blitz June 6 Late 2023"]
[White "Daggupati, Balaji"]
[Black "Aggelis, Nikolaos"]
[WhiteFideId "2090759"]
[BlackFideId "4213220"]
[WhiteElo "2715"]
[BlackElo "2189"]
[Result "1-0"]
[Round "3"]
[TimeControl "180+2"]
[Date "2023.06.07"]
[WhiteClock "0:00:59"]
[BlackClock "0:00:34"]
[Board "71"]

1. e4 {[%clk 0:03:00]}  c6 {[%clk 0:02:55]} 2. d4 {[%clk 0:03:00]}  d5 {[%clk 0:02:53]} 3. Nc3 {[%clk 0:03:01]}  dxe4 {[%clk 0:02:51]} 4. Nxe4 {[%clk 0:03:02]}  Nf6 {[%clk 0:02:49]} 5. Nxf6+ {[%clk 0:03:01]}  exf6 {[%clk 0:02:49]} 6. c3 {[%clk 0:03:02]}  Bd6 {[%clk 0:02:48]} 7. Bd3 {[%clk 0:03:02]}  Qc7 {[%clk 0:02:49]} 8. Qc2 {[%clk 0:03:02]}  h5 {[%clk 0:02:48]} 9. Nf3 {[%clk 0:03:01]}  O-O {[%clk 0:02:46]} 10. Be3 {[%clk 0:03:00]}  Re8 {[%clk 0:02:42]} 11. O-O-O {[%clk 0:03:00]}  Nd7 {[%clk 0:02:41]} 12. h3 {[%clk 0:02:47]}  Bf4 {[%clk 0:02:20]} 13. g4 {[%clk 0:02:40]}  Bxe3+ {[%clk 0:01:41]} 14. fxe3 {[%clk 0:02:40]}  Rxe3 {[%clk 0:01:41]} 15. Nh4 {[%clk 0:02:40]}  Nf8 {[%clk 0:01:31]} 16. gxh5 {[%clk 0:02:40]}  Qg3 {[%clk 0:01:25]} 17. Ng2 {[%clk 0:02:31]}  Re8 {[%clk 0:01:19]} 18. Rdg1 {[%clk 0:02:10]}  Be6 {[%clk 0:01:17]} 19. Ne1 {[%clk 0:02:06]}  Qe3+ {[%clk 0:01:14]} 20. Kb1 {[%clk 0:02:06]}  Bd5 {[%clk 0:01:14]} 21. Ng2 {[%clk 0:02:05]}  Qg3 {[%clk 0:01:09]} 22. c4 {[%clk 0:01:56]}  Qxd3 {[%clk 0:01:03]} 23. Qxd3 {[%clk 0:01:49]}  Be4 {[%clk 0:01:03]} 24. Kc2 {[%clk 0:01:49]}  Bxd3+ {[%clk 0:01:03]} 25. Kxd3 {[%clk 0:01:50]}  Rad8 {[%clk 0:01:01]} 26. Nf4 {[%clk 0:01:26]}  Ne6 {[%clk 0:01:01]} 27. Nxe6 {[%clk 0:01:25]}  Rxe6 {[%clk 0:01:01]} 28. Rg4 {[%clk 0:01:23]}  Rde8 {[%clk 0:01:00]} 29. Rhg1 {[%clk 0:01:20]}  Re2 {[%clk 0:00:56]} 30. Rxg7+ {[%clk 0:01:18]}  Kh8 {[%clk 0:00:55]} 31. R1g3 {[%clk 0:01:13]}  Rxb2 {[%clk 0:00:41]} 32. Rxf7 {[%clk 0:01:11]}  Rxa2 {[%clk 0:00:41]} 33. Rgg7 {[%clk 0:01:02]}  Ra3+ {[%clk 0:00:41]} 34. Kd2 {[%clk 0:01:03]}  Ra2+ {[%clk 0:00:40]} 35. Kc3 {[%clk 0:01:03]}  Ra3+ {[%clk 0:00:40]} 36. Kb4 {[%clk 0:01:03]}  Rxh3 {[%clk 0:00:40]} 37. Rh7+ {[%clk 0:01:01]}  Kg8 {[%clk 0:00:40]} 38. Rfg7+ {[%clk 0:00:59]}  Kf8 {[%clk 0:00:41]} 39. Rxb7 {[%clk 0:00:59]}  a6 {[%clk 0:00:34]} 40. Rh8# {[%clk 0:00:59]} 1-0


[Site "https://www.chess.com"]

[Event "Titled Tuesday Blitz June 6 Late 2023"]
[White "Jimenez Almeida, Luis David"]
[Black "Do Valle Cardoso, Lucas"]
[WhiteFideId "22242244"]
[BlackFideId "2163144"]
[WhiteElo "2245"]
[BlackElo "2364"]
[Result "1-0"]
[Round "3"]
[TimeControl "180+2"]
[Date "2023.06.07"]
[WhiteClock "0:00:08"]
[BlackClock "0:00:02"]
[Board "72"]

1. e4 {[%clk 0:03:00]}  c5 {[%clk 0:02:59]} 2. Nc3 {[%clk 0:03:00]}  d6 {[%clk 0:03:00]} 3. g3 {[%clk 0:03:01]}  g6 {[%clk 0:02:59]} 4. Bg2 {[%clk 0:03:01]}  Bg7 {[%clk 0:03:00]} 5. Nge2 {[%clk 0:03:01]}  Nc6 {[%clk 0:03:01]} 6. O-O {[%clk 0:03:01]}  e6 {[%clk 0:02:54]} 7. h3 {[%clk 0:03:01]}  Nge7 {[%clk 0:02:55]} 8. d3 {[%clk 0:03:00]}  O-O {[%clk 0:02:54]} 9. Be3 {[%clk 0:03:01]}  Rb8 {[%clk 0:02:54]} 10. a4 {[%clk 0:03:00]}  a6 {[%clk 0:02:54]} 11. Qd2 {[%clk 0:03:01]}  b5 {[%clk 0:02:55]} 12. axb5 {[%clk 0:03:02]}  axb5 {[%clk 0:02:55]} 13. Bh6 {[%clk 0:03:01]}  b4 {[%clk 0:02:53]} 14. Nd1 {[%clk 0:03:00]}  Bb7 {[%clk 0:02:43]} 15. Bxg7 {[%clk 0:02:52]}  Kxg7 {[%clk 0:02:44]} 16. Ne3 {[%clk 0:02:53]}  Qc7 {[%clk 0:02:27]} 17. Ng4 {[%clk 0:02:51]}  Ng8 {[%clk 0:02:27]} 18. d4 {[%clk 0:02:49]}  cxd4 {[%clk 0:02:23]} 19. Nxd4 {[%clk 0:02:50]}  Nxd4 {[%clk 0:02:23]} 20. Qxd4+ {[%clk 0:02:50]}  e5 {[%clk 0:02:23]} 21. Qd2 {[%clk 0:02:48]}  h5 {[%clk 0:01:47]} 22. Ne3 {[%clk 0:02:43]}  Nf6 {[%clk 0:01:47]} 23. Qd3 {[%clk 0:02:38]}  Rfd8 {[%clk 0:01:41]} 24. Rfd1 {[%clk 0:02:21]}  Qc5 {[%clk 0:01:26]} 25. Rd2 {[%clk 0:02:05]}  h4 {[%clk 0:01:11]} 26. g4 {[%clk 0:02:05]}  Nh7 {[%clk 0:01:04]} 27. Nc4 {[%clk 0:01:51]}  Ng5 {[%clk 0:00:44]} 28. Nxd6 {[%clk 0:01:34]}  Nxe4 {[%clk 0:00:30]} 29. Bxe4 {[%clk 0:00:33]}  Bxe4 {[%clk 0:00:29]} 30. Qxe4 {[%clk 0:00:33]}  Rxd6 {[%clk 0:00:29]} 31. Rad1 {[%clk 0:00:33]}  Rbd8 {[%clk 0:00:26]} 32. Rxd6 {[%clk 0:00:30]}  Rxd6 {[%clk 0:00:27]} 33. Rd3 {[%clk 0:00:20]}  Rf6 {[%clk 0:00:08]} 34. Re3 {[%clk 0:00:17]}  Rc6 {[%clk 0:00:03]} 35. Re2 {[%clk 0:00:16]}  Re6 {[%clk 0:00:03]} 36. Kf1 {[%clk 0:00:14]}  Qb5 {[%clk 0:00:02]} 37. Kg2 {[%clk 0:00:13]}  Qc5 {[%clk 0:00:02]} 38. Qe3 {[%clk 0:00:12]}  Qd5+ {[%clk 0:00:02]} 39. Qe4 {[%clk 0:00:12]}  Qc5 {[%clk 0:00:03]} 40. Kh2 {[%clk 0:00:11]}  Qb5 {[%clk 0:00:02]} 41. g5 {[%clk 0:00:11]}  Qc5 {[%clk 0:00:02]} 42. Qxh4 {[%clk 0:00:11]}  e4 {[%clk 0:00:01]} 43. Rd2 {[%clk 0:00:08]}  e3 {[%clk 0:00:02]} 44. Qh6+ {[%clk 0:00:08]} 1-0


[Site "https://www.chess.com"]

[Event "Titled Tuesday Blitz June 6 Late 2023"]
[White "Baches Garcia, Guillermo"]
[Black "Rosen, Eric"]
[WhiteFideId "2209764"]
[BlackFideId "2032562"]
[WhiteElo "2494"]
[BlackElo "2331"]
[Result "0-1"]
[Round "3"]
[TimeControl "180+2"]
[Date "2023.06.07"]
[WhiteClock "0:00:09"]
[BlackClock "0:00:05"]
[Board "75"]

1. e4 {[%clk 0:03:00]}  c5 {[%clk 0:02:59]} 2. Nf3 {[%clk 0:03:00]}  Nc6 {[%clk 0:03:00]} 3. d4 {[%clk 0:03:00]}  cxd4 {[%clk 0:03:01]} 4. Nxd4 {[%clk 0:03:00]}  g6 {[%clk 0:03:01]} 5. Nc3 {[%clk 0:02:57]}  Bg7 {[%clk 0:03:01]} 6. Be3 {[%clk 0:02:57]}  Nf6 {[%clk 0:03:01]} 7. Bc4 {[%clk 0:02:52]}  O-O {[%clk 0:03:01]} 8. Bb3 {[%clk 0:02:52]}  Re8 {[%clk 0:03:02]} 9. h3 {[%clk 0:02:43]}  d6 {[%clk 0:03:00]} 10. O-O {[%clk 0:02:40]}  Na5 {[%clk 0:03:01]} 11. f4 {[%clk 0:02:34]}  b6 {[%clk 0:02:41]} 12. e5 {[%clk 0:02:24]}  dxe5 {[%clk 0:02:14]} 13. fxe5 {[%clk 0:02:18]}  Nxb3 {[%clk 0:02:14]} 14. axb3 {[%clk 0:01:45]}  Nd5 {[%clk 0:01:32]} 15. Nxd5 {[%clk 0:01:08]}  Qxd5 {[%clk 0:01:29]} 16. c4 {[%clk 0:01:06]}  Qe4 {[%clk 0:01:09]} 17. Qf3 {[%clk 0:00:51]}  Qxf3 {[%clk 0:01:09]} 18. Nxf3 {[%clk 0:00:49]}  Bb7 {[%clk 0:01:10]} 19. Bd4 {[%clk 0:00:47]}  Red8 {[%clk 0:01:08]} 20. Bc3 {[%clk 0:00:46]}  h6 {[%clk 0:00:51]} 21. e6 {[%clk 0:00:34]}  fxe6 {[%clk 0:00:35]} 22. Bxg7 {[%clk 0:00:31]}  Kxg7 {[%clk 0:00:36]} 23. Ne5 {[%clk 0:00:31]}  Rd2 {[%clk 0:00:32]} 24. Rf7+ {[%clk 0:00:21]}  Kg8 {[%clk 0:00:32]} 25. Rxe7 {[%clk 0:00:21]}  Rxg2+ {[%clk 0:00:28]} 26. Kf1 {[%clk 0:00:20]}  Rf8+ {[%clk 0:00:27]} 27. Ke1 {[%clk 0:00:18]}  Rg1+ {[%clk 0:00:10]} 28. Kd2 {[%clk 0:00:18]}  Rxa1 {[%clk 0:00:11]} 29. Rxb7 {[%clk 0:00:18]}  Rg1 {[%clk 0:00:07]} 30. Nd7 {[%clk 0:00:16]}  Rd8 {[%clk 0:00:04]} 31. Kc3 {[%clk 0:00:15]}  Rf1 {[%clk 0:00:03]} 32. b4 {[%clk 0:00:15]}  Rf3+ {[%clk 0:00:03]} 33. Kd4 {[%clk 0:00:14]}  Rf7 {[%clk 0:00:04]} 34. c5 {[%clk 0:00:09]}  Rfxd7+ {[%clk 0:00:03]} 35. Rxd7 {[%clk 0:00:09]}  Rxd7+ {[%clk 0:00:04]} 36. Ke5 {[%clk 0:00:09]}  bxc5 {[%clk 0:00:04]} 37. bxc5 {[%clk 0:00:09]}  Rd5+ {[%clk 0:00:05]} 0-1


[Site "https://www.chess.com"]